Cogmind - Beta 10.1 @@@ ROGUE MODE // 2020.09.25 @ 19:55:31 Player: Cassie Rose Result: Destroyed by Y-45 Defender with Heavy Assault Rifle Performance ------------- Evolutions (1) 500 Regions Visited (2) 400 Robots Destroyed (31) 155 Value Destroyed (752) 752 Prototype IDs (0) 0 Alien Tech Used (0) 0 Bonus (0) 0 TOTAL SCORE: 1807 Bonus ------- None Cogmind --------- Core Integrity 0/400 Matter 280/300 Energy 84/160 System Corruption 0% Temperature Cool (17) Movement Walking (180) Ox2 Location -9/Materials Parts ------- > --- POWER (1) -------- Light Nuclear Core > --- PROPULSION (2) --- Aluminum Leg Improved Aluminum Leg > --- UTILITY (4) ------ Large Storage Unit High-capacity Storage Unit Hacking Suite > --- WEAPON (2) ------- Mining Claw Katana > --- INVENTORY (18) --- ECM Suite Improved Light Armor Plating Improved Light Armor Plating Hacking Suite Hacking Suite Hacking Suite Hacking Suite Assault Rifle High-powered Shotgun Mini Grenade Launcher Mini Grenade Launcher Datajack Peak State ------------ > --- POWER ------------ Light Nuclear Core > --- PROPULSION ------- Aluminum Leg Aluminum Leg > --- UTILITY ---------- Small Storage Unit High-capacity Storage Unit Hacking Suite Hacking Suite > --- WEAPON ----------- Mining Claw Mining Claw > --- INVENTORY -------- Light Nuclear Core Light Nuclear Core ECM Suite Improved Light Armor Plating Improved Light Armor Plating Hacking Suite Hacking Suite Hacking Suite Assault Rifle High-powered Shotgun Grenade Launcher Mini Grenade Launcher Mini Grenade Launcher Datajack [Rating: 18] Favorites ----------- Power Light Nuclear Core Engine Light Ion Engine Power Core Light Nuclear Core Propulsion Aluminum Leg Leg Aluminum Leg Utility High-capacity Storage Unit Storage High-capacity Storage Unit Hackware Hacking Suite Weapon Mining Claw Energy Gun Small Laser Ballistic Gun Assault Rifle Slashing Weapon Mining Claw Build | -11 -10 -9 ------- Run | Scr Mat Mat Slots Evolved 2 | . . 2 Power . | . . . Propulsion . | . . . Utility 2 | . . 2 Weapon . | . . . Parts Attached 32 | 6 10 16 Power 7 | 1 2 4 Engine 1 | 1 . . Core 6 | . 2 4 Reactor . | . . . Propulsion 15 | 2 5 8 Treads . | . . . Leg 15 | 2 5 8 Wheel . | . . . Hover . | . . . Flight . | . . . Utility 5 | 1 1 3 Device . | . . . Storage 3 | 1 1 1 Processor . | . . . Hackware 2 | . . 2 Protection . | . . . Artifact . | . . . Weapon 5 | 2 2 1 Energy Gun 1 | 1 . . Energy Cannon . | . . . Ballistic Gun 1 | 1 . . Ballistic Cannon . | . . . Launcher . | . . . Special Weapon . | . . . Impact Weapon . | . . . Slashing Weapon 3 | . 2 1 Piercing Weapon . | . . . Special Melee Weapon . | . . . Unidentified Prototypes . | . . . Parts Lost 9 | . 1 8 Power 3 | . . 3 Propulsion 4 | . 1 3 Utility 1 | . . 1 Weapon 1 | . . 1 Highest Loss Streak 4 | . 1 4 Average Slot Usage (%) 94 | . 99 87 Core 11 | . 13 7 Leg 24 | . 27 18 Storage 25 | . 27 22 Hackware 6 | . . 16 Slashing Weapon 25 | . 27 21 Naked Turns . | . . . Heaviest Build 57 | 10 45 57 Greatest Support 23 | 20 20 23 Greatest Overweight (x) 17 | . 2 17 Average Overweight (x) 2 | . 1 2 Largest Inventory Capacity 18 | 6 14 18 Average Capacity 14 | 5 13 16 Most Carried 17 | 3 14 17 Average Carried 12 | . 11 13 Final Capacity 18 | 6 14 18 Final Carried 14 | 1 14 12 Class Distribution -------------------- 66% | Mutant 18% | Hacker-Mutant 15% | Scavenger-Mutant Dominant Class ---------------- Mutant | -10/Materials Hacker-Mutant | -9/Materials Resources | -11 -10 -9 ----------- Run | Scr Mat Mat Matter Collected 465 | 230 125 110 Remotely . | . . . Salvage Created 1058 | . 551 507 Parts 61 | . 35 26 Haulers Intercepted 2 | . 2 . Recyclers Shooed 2 | . 1 1 Parts Field Recycled . | . . . Retrieved Matter . | . . . Parts Self-Destructed . | . . . Prevented . | . . . Kills | -11 -10 -9 ------- Run | Scr Mat Mat Combat Hostiles Destroyed 24 | . 13 11 Melee 24 | . 13 11 Classes Destroyed 10 | . 5 5 Builder 1 | . . 1 Hauler 2 | . 2 . Recycler 1 | . . 1 Operator 2 | . 2 . Watcher 1 | . 1 . Swarmer 8 | . 6 2 Grunt 12 | . 7 5 Brawler 1 | . . 1 Duelist 2 | . . 2 Sentry 1 | . . 1 Best Kill Streak 4 | . 3 4 Combat Bots Only 4 | . 2 4 Max Kills in Single Turn 1 | . 1 1 Gunslinging . | . . . Exploded . | . . . Melee 1 | . 1 1 Uniques/NPCs Destroyed . | . . . Combat | -11 -10 -9 -------- Run | Scr Mat Mat Damage Taken 2015 | . 589 1426 Core 593 | . 180 413 Absorbed by Shields . | . . . Core Remaining (%) 64 | 100 28 . Volleys Fired . | . . . Largest . | . . . Hottest . | . . . Shots Fired . | . . . Gun . | . . . Cannon . | . . . Launcher . | . . . Special . | . . . Kinetic . | . . . Thermal . | . . . Explosive . | . . . Electromagnetic . | . . . Robot Hit Streak . | . . . Robot Miss Streak . | . . . Penetration Max . | . . . Secondary Targets . | . . . Shots Hit Robots 96 | . 45 51 Core Hits 35 | . 20 15 Critical Hits 1 | . . 1 Critical Kills . | . . . Critical Parts Destroyed 1 | . . 1 Melee Attacks 168 | . 80 88 Impact . | . . . Slashing 168 | . 80 88 Piercing . | . . . Sneak Attacks 9 | . 5 4 Combat Hostiles . | . . . Follow-up Attacks 10 | . 6 4 Damage Inflicted 2626 | . 1223 1403 Guns . | . . . Cannons . | . . . Explosions . | . . . Melee 2626 | . 1223 1403 Ramming . | . . . Kinetic . | . . . Thermal . | . . . Explosive . | . . . Electromagnetic . | . . . Impact . | . . . Slashing 2626 | . 1223 1403 Piercing . | . . . Highest Corruption . | . . . Average Corruption . | . . . Corruption Purged . | . . . Overload Shots . | . . . Overflow Damage 340 | . 154 186 Projectiles . | . . . Explosions . | . . . Melee 340 | . 154 186 Knockbacks . | . . . Impact . | . . . Kinetic . | . . . Secondary . | . . . Self-Inflicted Damage . | . . . Shots . | . . . Rammed . | . . . Targets Rammed . | . . . Kicked . | . . . Crushed . | . . . Highest Temperature . | . . . Average Temperature . | . . . Received Heat Transfer 360 | . 195 165 Siege Activations . | . . . Robots Corrupted . | . . . Combat Hostiles . | . . . Parts Fried . | . . . Impact Corruptions . | . . . Robots Melted . | . . . Combat Hostiles . | . . . Parts Melted . | . . . Heat Transferred . | . . . Parts Sabotaged . | . . . Parts Stolen . | . . . Parts Stripped . | . . . Power Chain Reactions . | . . . Missiles Intercepted . | . . . Alert | -11 -10 -9 ------- Run | Scr Mat Mat Peak Influence 189 | . 189 170 Initial . | . . . Average 64 | . 63 70 Maximum Alert Level . | . . . Low Security (%) 100 | 100 100 100 Level 1 . | . . . Level 2 . | . . . Level 3 . | . . . Level 4 . | . . . Level 5 . | . . . High Security . | . . . Max Security . | . . . Squads Dispatched 4 | . 3 1 Investigation . | . . . Extermination . | . . . Reinforcement 4 | . 3 1 Assault . | . . . Garrison . | . . . Intercept . | . . . Construction Impeded . | . . . Haulers Reinforced . | . . . Stealth | -11 -10 -9 --------- Run | Scr Mat Mat Distress Signals 5 | . 1 4 Communications Jammed . | . . . Distress Signals . | . . . Times Spotted 54 | . 26 28 Peak Tracking Total 5 | . 3 5 Tactical Retreats 5 | . 4 1 Traps | -11 -10 -9 ------- Run | Scr Mat Mat Traps Triggered . | . . . Indirectly . | . . . Trap Hack Attempts . | . . . Triggered . | . . . Disarmed . | . . . Reprogrammed . | . . . Reused . | . . . Traps Extracted . | . . . Installed . | . . . Triggered . | . . . Machines | -11 -10 -9 ---------- Run | Scr Mat Mat Machines Disabled . | . . . Max in Single Turn . | . . . Machines Sabotaged . | . . . Garrisons Compromised . | . . . Overloaded Fab Kills . | . . . Fab Network Shutdowns . | . . . Hacking | -11 -10 -9 --------- Run | Scr Mat Mat Machines Accessed 8 | . 5 3 Terminals 8 | . 5 3 Fabricators . | . . . Repair Stations . | . . . Recycling Units . | . . . Scanalyzers . | . . . Garrison Access . | . . . Total Hacks 26 | . 16 10 Successful 18 | . 11 7 Failed 8 | . 5 3 Catastrophic 2 | . 1 1 Database Lockouts . | . . . Manual 24 | . 15 9 Terminals 26 | . 16 10 Fabricators . | . . . Repair Stations . | . . . Recycling Units . | . . . Scanalyzers . | . . . Garrison Access . | . . . Terminal Hacks 5 | . 3 2 Robot Analysis 1 | . 1 . Branch Access Points 2 | . 1 1 Unreport Threat 1 | . 1 . Recall Investigation 1 | . . 1 Fabricator Hacks . | . . . Repair Station Hacks . | . . . Recycling Unit Hacks . | . . . Scanalyzer . | . . . Garrison Access Hacks . | . . . Unauthorized Hacks 13 | . 8 5 Terminals 13 | . 8 5 Assimilate 4 | . 2 2 Botnet 8 | . 5 3 Operators 1 | . 1 . Fabricators . | . . . Repair Stations . | . . . Recycling Units . | . . . Scanalyzers . | . . . Garrison Access . | . . . Data Cores Recovered . | . . . Used . | . . . Hacking Detections 7 | . 4 3 Full Trace Events . | . . . Feedback Events . | . . . Feedback Blocked . | . . . Robot Schematics Acquired . | . . . Robots Built . | . . . Matter . | . . . Time . | . . . Total Robot Build Rating . | . . . Part Schematics Acquired . | . . . Parts Built . | . . . Matter . | . . . Time . | . . . Total Part Build Rating . | . . . Parts Repaired . | . . . Time . | . . . Parts Recycled . | . . . Recycled Matter . | . . . Retrieved Matter . | . . . Retrieved Components . | . . . Parts Scanalyzed . | . . . Part Schematics Acquired . | . . . Parts Damaged . | . . . Bothacking | -11 -10 -9 ------------ Run | Scr Mat Mat Used RIF Installer . | . . . Robots Hacked . | . . . Non-combat . | . . . Combat . | . . . Robot Hacks Applied . | . . . Relay Couplers Released . | . . . Robots Rewired . | . . . Allies Hacked . | . . . Hacks Repelled . | . . . Allies | -11 -10 -9 -------- Run | Scr Mat Mat Total Allies 1 | . 1 . Largest Group 1 | . 1 . Highest-Rated Group 10 | . 10 . Highest-Rated Ally 10 | . 10 . Total Orders . | . . . Ally Attacks . | . . . Total Damage . | . . . Kills . | . . . Allies Corrupted . | . . . Allies Melted . | . . . Intel | -11 -10 -9 ------- Run | Scr Mat Mat Robot Analysis Total 1 | . 1 . Derelict Logs Recovered . | . . . Drone Launches . | . . . Drone Recoveries . | . . . Exploration | -11 -10 -9 ------------- Run | Scr Mat Mat Turns Passed 2641 | 54 1621 966 Spaces Moved 1052 | 38 691 323 Core 11 | 5 . 6 Treads . | . . . Legs 1041 | 33 691 317 Wheels . | . . . Hover . | . . . Flight . | . . . Fastest Speed 50 | 50 120 180 Average Speed 181 | 110 178 196 Slowest Speed 900 | 120 180 900 Overloaded Moves . | . . . Propulsion Burnouts . | . . . Robots Hopped . | . . . Cave-ins Triggered . | . . . Exploration Rate (%) 40 | 3 92 25 Regions Visited 2 Branch Regions . Pre-discovered Areas . | . . . Known Exits Taken . | . . . Unknown Exits Taken 2 | 1 1 . Scrap Searched . | . . . Spaces Dug 21 | . 12 9 Terrain Destroyed 21 | . 12 9 Melee 21 | . 12 9 Projectile . | . . . AOE . | . . . Terrain Rammed . | . . . Walls Destroyed . | . . . Machines Disabled . | . . . Actions | -11 -10 -9 --------- Run | Scr Mat Mat Total 1497 | 50 936 511 Wait 202 | . 136 66 Move 1050 | 37 690 323 Hop . | . . . Pick Up 45 | 7 21 17 Fast Attach . | . . . Attach 18 | 6 2 10 Detach . | . . . Swap 14 | . 8 6 Drop 20 | . 9 11 Fire . | . . . Melee 148 | . 70 78 Ram . | . . . Kick . | . . . Crush . | . . . Escape Stasis . | . . . Rewire . | . . . Trap . | . . . Miscellaneous . | . . . Route ------- -11/Scrapyard -10/Materials (discovered 5 exits: *Mat x3 / *Min x2) -9/Materials (discovered 1 exit: Min) History --------- Turn | Location | Event 34 | -11/Scrapyard | Discovered new exit (range 16) 55 | -11/Scrapyard | Entered Materials 300 | -10/Materials | Build established: Mutant 729 | -10/Materials | Core integrity fell below 50% 776 | -10/Materials | Discovered new exit (range 5) 798 | -10/Materials | Discovered new exit (range 14) 952 | -10/Materials | Discovered new exit (range 7) 1099 | -10/Materials | Identified exit to Mines 1320 | -10/Materials | Discovered new exit (range 4) 1658 | -10/Materials | Discovered new exit (range 4) 1676 | -10/Materials | Entered another Materials area 1676 | -9/Materials | Evolved 2 slots: Utility x2 1977 | -9/Materials | Build established: Hacker-Mutant 2142 | -9/Materials | Core integrity fell below 50% 2196 | -9/Materials | Lost 4 parts (1p1n1u1w) 2477 | -9/Materials | Core integrity fell below 20% 2528 | -9/Materials | Identified exit to Mines 2536 | -9/Materials | Build established: Scavenger-Mutant 2642 | -9/Materials | Destroyed by Y-45 Defender with Heavy Assault Rifle Last Messages --------------- >>Access(Branch) Found 1 branch access point: (85,15) Mines Map updated. 02568_ O-16 Technician: "IFF HANDSHAKE FAILED. SECURING TERMINAL." 02574_ ALERT: Hostiles spotted, dispatching reinforcements to Terminal M009. 02590_ K-01 Serf cleans the Terminal. 02596_ Connecting with Terminal... >>Trojan(Botnet) Trojan loaded successfully. Testing... Terminal linked with 2 systems. Awaiting botnet instructions. >>Recall(Investigation) Establishing remote squad link... No tasked investigation squads found. 02616_ Sneak attack on A-02 Transporter. 02624_ K-01 Serf cleans the Pressure Siphon. 02640_ Aluminum Leg destroyed. Map ----- +----------------------------------------------------+ | % """""# T" #????????????????????????????? | | """""# "" #????????????????????????????? | | %* """""# #????????????????????????????? | | %[ """ #####+####????????????????????????????? | | != + ########???????????????????????? | | #####+######### # #???????????????????????? | | #??????# # #???????????????????????? | | #??????# =# #???????????????????????? | | #??????#!%%# #???????????????????????? | | #????###%=[# #???????????????????????? | | ######## # """#???????????????????????? | | # # """#???????????????????????? | | # + """#???????????????????????? | | # # """#???????????????????????? | | + ## """#???????????????????????? | | # ## ^ #???????????????????????? | | # """ ## #???????????????????????? | | ######## """ ###########+###?????????????????? | | """ [ ????????????????? | | """ #????????????????? | | ######## #????????????????? | | # % + ##########+####????????????????? | | # # """ #???????? #????????????????? | | # ! # """ #??????? !!##???????????????? | | # # """ g ######## ! Y#???????????????? | | # # """ g @ #????????????????? | | # # ! ##### "T" #????????????????? | | ######## #???? #????????????????? | | ???#[[ #####+###+#?????######????????????????? | | ???#[ # #???????????????????????????? | | ???# # "T" """ #???????????????????????????? | | ???# # """ #???????????????????????????? | | ???#!! ##### """ #???????????????????????????? | | ???#!! #???# #???????????????????????????? | | ???#####???# #???????????????????????????? | | ???????????# ** #???????????????????????????? | | ???????????# *[ #???????????????????????????? | | ???????????###########???????????????????????????? | | ?????????????????????????????????????????????????? | | | | | | | | | | | | | | | | | | | | | | | +----------------------------------------------------+ Best States ------------- Heat Dissipation 28 Energy Generation 14 Energy Capacity 160 Matter Stores 300 Matter Capacity 300 Sight Range 16 Terrain Scan Density 10 Evasion (%) 40 Offensive Hacking 20 Item Schematics ----------------- None Robot Schematics ------------------ None Fabricated ------------ Nothing Alien Tech Used ----------------- None Achievements -------------- Part-time Excavator Challenges ------------ None Game ------ Seed LatentAccelerationPick Manual? 0 Play Time 00:28:27 Cumulative 92.1 hours Start 2020.09.25 @ 18:24:29 End 2020.09.25 @ 19:55:31 Sessions 1 Manual Loads 0 Difficulty Rogue Special Mode None Game No. 155 Rogue 155 Adventurer 0 Explorer 0 Win Type - Total 0 Types 0/0/0/0/0/0/0/0/0 Lore% 22 Gallery% 28 Achievement% 28 Wizard Run 0 Options --------- ASCII 0 Keyboard 0 Movement Mouse Keybinds 0 Fullscreen 2 Font 18/CogNarrow Map View 76x50 Tactical HUD 1 Map Filters NONE Filters LOW_CONTRAST(13,24,33)|BRIGHTNESS(120)|SATURATION(80) Steam 1 RUN: 7fc8538c-9c70-4aea-a0e7-184325ba5f9d